[Event "*** Titled Tuesday Blitz"]
[Site "Chess.com"]
[Date "2020.10.20"]
[Round "8"]
[White "TorFredrikKaasen"]
[Black "WuinaterJr"]
[Result "0-1"]
[WhiteElo "2686"]
[BlackElo "2540"]
[TimeControl "180+1"]
[EndTime "11:37:33 PDT"]
[Termination "WuinaterJr won on time"]

1. d4 {[%clk 0:03:00.9]} 1... Nf6 {[%clk 0:02:59.9]} 2. c4 {[%clk 0:02:50.8]}
2... e6 {[%clk 0:03:00.1]} 3. Nf3 {[%clk 0:02:45.9]} 3... d5 {[%clk 0:02:59]} 4.
Nc3 {[%clk 0:02:46.1]} 4... Bb4 {[%clk 0:02:59]} 5. cxd5 {[%clk 0:02:45.1]} 5...
exd5 {[%clk 0:02:58.7]} 6. Bf4 {[%clk 0:02:45.6]} 6... O-O {[%clk 0:02:58.2]} 7.
e3 {[%clk 0:02:45.1]} 7... c6 {[%clk 0:02:49.4]} 8. Bd3 {[%clk 0:02:44.6]} 8...
Bg4 {[%clk 0:02:49.8]} 9. O-O {[%clk 0:02:44.2]} 9... Nbd7 {[%clk 0:02:49.5]}
10. a3 {[%clk 0:02:36.8]} 10... Be7 {[%clk 0:02:48]} 11. b4 {[%clk 0:02:34.9]}
11... Rc8 {[%clk 0:02:38.9]} 12. Be2 {[%clk 0:02:19.4]} 12... Re8 {[%clk
0:02:29.6]} 13. Rb1 {[%clk 0:02:16.9]} 13... Bf8 {[%clk 0:02:28]} 14. a4 {[%clk
0:02:02.1]} 14... Ne4 {[%clk 0:02:19.1]} 15. Nxe4 {[%clk 0:01:52.6]} 15... dxe4
{[%clk 0:02:18.9]} 16. Nd2 {[%clk 0:01:53.2]} 16... Bxe2 {[%clk 0:02:18.8]} 17.
Qxe2 {[%clk 0:01:54.1]} 17... Nb6 {[%clk 0:02:17.4]} 18. Bg3 {[%clk 0:01:31.2]}
18... Nxa4 {[%clk 0:02:15.5]} 19. Ra1 {[%clk 0:01:28.8]} 19... b5 {[%clk
0:02:07.4]} 20. Qg4 {[%clk 0:01:18.6]} 20... Qd5 {[%clk 0:01:53.7]} 21. Be5
{[%clk 0:01:08.5]} 21... Nc3 {[%clk 0:01:09.6]} 22. Rfc1 {[%clk 0:01:06.6]}
22... f5 {[%clk 0:01:09.1]} 23. Qxf5 {[%clk 0:00:48.1]} 23... Ne2+ {[%clk
0:01:09.2]} 24. Kh1 {[%clk 0:00:47.6]} 24... Nxc1 {[%clk 0:01:09.9]} 25. Rxc1
{[%clk 0:00:48.3]} 25... Qf7 {[%clk 0:01:10.3]} 26. Qg4 {[%clk 0:00:40.3]} 26...
Kh8 {[%clk 0:00:48.6]} 27. Nxe4 {[%clk 0:00:39.1]} 27... Bxb4 {[%clk 0:00:48.7]}
28. Ng5 {[%clk 0:00:36]} 28... Qg6 {[%clk 0:00:45.7]} 29. Qh4 {[%clk 0:00:20.4]}
29... Be7 {[%clk 0:00:42.3]} 30. f4 {[%clk 0:00:13.7]} 30... Bxg5 {[%clk
0:00:40.1]} 31. fxg5 {[%clk 0:00:12.6]} 31... a5 {[%clk 0:00:39.7]} 32. Qg4
{[%clk 0:00:08.1]} 32... Qe6 {[%clk 0:00:32.1]} 33. Qg3 {[%clk 0:00:04.7]} 33...
a4 {[%clk 0:00:31.2]} 34. h4 {[%clk 0:00:04.9]} 34... Qf7 {[%clk 0:00:24.7]} 35.
h5 {[%clk 0:00:05.1]} 35... Qxh5+ {[%clk 0:00:24.4]} 36. Kg1 {[%clk 0:00:05.1]}
36... a3 {[%clk 0:00:22.2]} 37. Ra1 {[%clk 0:00:04.8]} 37... Ra8 {[%clk
0:00:20.7]} 38. Qf4 {[%clk 0:00:05.1]} 38... Qg6 {[%clk 0:00:17.3]} 39. g4
{[%clk 0:00:04.1]} 39... a2 {[%clk 0:00:17]} 40. Qf5 {[%clk 0:00:03.2]} 40...
Qxf5 {[%clk 0:00:16.6]} 41. gxf5 {[%clk 0:00:04.1]} 41... b4 {[%clk 0:00:16.5]}
42. f6 {[%clk 0:00:03.1]} 42... b3 {[%clk 0:00:16.6]} 43. f7 {[%clk 0:00:03.1]}
43... Rf8 {[%clk 0:00:16.8]} 44. d5 {[%clk 0:00:02.5]} 44... cxd5 {[%clk
0:00:15.8]} 45. g6 {[%clk 0:00:03.1]} 45... hxg6 {[%clk 0:00:15.9]} 46. Kg2
{[%clk 0:00:03.7]} 46... Rxf7 {[%clk 0:00:16.2]} 47. Rh1+ {[%clk 0:00:03.9]}
47... Kg8 {[%clk 0:00:16.7]} 48. Ba1 {[%clk 0:00:04.6]} 48... Rb7 {[%clk
0:00:16.8]} 49. Bb2 {[%clk 0:00:04.5]} 49... Rc7 {[%clk 0:00:16.6]} 50. Kf3
{[%clk 0:00:04.3]} 50... Rc2 {[%clk 0:00:17.1]} 51. Bd4 {[%clk 0:00:03.2]} 51...
b2 {[%clk 0:00:17.7]} 52. Rh2 {[%clk 0:00:03.2]} 52... Rxh2 {[%clk 0:00:17.3]}
0-1

[Event "*** Titled Tuesday Blitz"]
[Site "Chess.com"]
[Date "2020.10.20"]
[Round "8"]
[White "talman67"]
[Black "googlegoom"]
[Result "1-0"]
[WhiteElo "2531"]
[BlackElo "2371"]
[TimeControl "180+1"]
[EndTime "11:37:34 PDT"]
[Termination "talman67 won on time"]

1. e4 {[%clk 0:03:00.9]} 1... c5 {[%clk 0:03:00]} 2. Nf3 {[%clk 0:03:00.7]} 2...
Nc6 {[%clk 0:03:00.6]} 3. d4 {[%clk 0:02:56.3]} 3... cxd4 {[%clk 0:03:01.5]} 4.
Nxd4 {[%clk 0:02:57.2]} 4... Qb6 {[%clk 0:03:02.2]} 5. Nb3 {[%clk 0:02:56.1]}
5... Nf6 {[%clk 0:03:02.2]} 6. Nc3 {[%clk 0:02:56.5]} 6... e6 {[%clk 0:03:02.8]}
7. Qe2 {[%clk 0:02:55.3]} 7... d6 {[%clk 0:03:02.1]} 8. g4 {[%clk 0:02:50.4]}
8... a6 {[%clk 0:03:01.4]} 9. g5 {[%clk 0:02:50]} 9... Nd7 {[%clk 0:03:01.4]}
10. Be3 {[%clk 0:02:50.6]} 10... Qc7 {[%clk 0:03:01.5]} 11. O-O-O {[%clk
0:02:51.2]} 11... b5 {[%clk 0:03:01.9]} 12. f4 {[%clk 0:02:49.6]} 12... Bb7
{[%clk 0:03:01.9]} 13. Qf2 {[%clk 0:02:47.4]} 13... Na5 {[%clk 0:03:01.2]} 14.
Bd3 {[%clk 0:02:35.1]} 14... Nc4 {[%clk 0:03:00.7]} 15. Kb1 {[%clk 0:02:34]}
15... Nxe3 {[%clk 0:03:00.2]} 16. Qxe3 {[%clk 0:02:34.9]} 16... Be7 {[%clk
0:02:45.3]} 17. h4 {[%clk 0:02:32.3]} 17... Nb6 {[%clk 0:02:40.2]} 18. Na5
{[%clk 0:02:20.7]} 18... Bc8 {[%clk 0:02:40.6]} 19. a3 {[%clk 0:02:18.4]} 19...
Rb8 {[%clk 0:02:28.5]} 20. f5 {[%clk 0:02:10.9]} 20... Nd7 {[%clk 0:02:09.4]}
21. Nb3 {[%clk 0:02:09.5]} 21... Ne5 {[%clk 0:02:09.2]} 22. Rhf1 {[%clk
0:02:03.9]} 22... b4 {[%clk 0:02:05.5]} 23. axb4 {[%clk 0:02:03.3]} 23... Rxb4
{[%clk 0:02:05.4]} 24. Be2 {[%clk 0:01:56.7]} 24... Qb8 {[%clk 0:01:28.9]} 25.
Rd4 {[%clk 0:01:26.3]} 25... Rb6 {[%clk 0:01:15.5]} 26. Ra4 {[%clk 0:01:22.9]}
26... Qc7 {[%clk 0:00:57.1]} 27. f6 {[%clk 0:01:19]} 27... gxf6 {[%clk
0:00:55.6]} 28. gxf6 {[%clk 0:01:19.9]} 28... Bf8 {[%clk 0:00:56.2]} 29. Rg1
{[%clk 0:01:17.2]} 29... Nd7 {[%clk 0:00:46.8]} 30. Qf4 {[%clk 0:01:08.8]} 30...
Nc5 {[%clk 0:00:42.6]} 31. Nxc5 {[%clk 0:01:01.1]} 31... Qxc5 {[%clk 0:00:42.3]}
32. Rg3 {[%clk 0:00:55.1]} 32... Qe5 {[%clk 0:00:36.5]} 33. Qxe5 {[%clk
0:00:47.1]} 33... dxe5 {[%clk 0:00:37.4]} 34. Rc4 {[%clk 0:00:47.7]} 34... Bd7
{[%clk 0:00:36.3]} 35. Rc7 {[%clk 0:00:46.6]} 35... Bb4 {[%clk 0:00:20.3]} 36.
Ra7 {[%clk 0:00:36.5]} 36... Bc8 {[%clk 0:00:20]} 37. Na4 {[%clk 0:00:19.6]}
37... Rc6 {[%clk 0:00:19.9]} 38. Rg7 {[%clk 0:00:16.2]} 38... Rf8 {[%clk
0:00:16.4]} 39. Bh5 {[%clk 0:00:16.7]} 39... Bd7 {[%clk 0:00:14.7]} 40. Be2
{[%clk 0:00:09.5]} 40... Rc8 {[%clk 0:00:09.6]} 41. Nb6 {[%clk 0:00:09]} 41...
Rd8 {[%clk 0:00:09.8]} 42. Bxa6 {[%clk 0:00:06.6]} 42... Bc6 {[%clk 0:00:08.2]}
43. c3 {[%clk 0:00:06.5]} 43... Bxe4+ {[%clk 0:00:08.1]} 44. Ka2 {[%clk
0:00:06.5]} 44... Bc5 {[%clk 0:00:08.6]} 45. Bb5+ {[%clk 0:00:05.4]} 1-0

[Event "*** Titled Tuesday Blitz"]
[Site "Chess.com"]
[Date "2020.10.20"]
[Round "8"]
[White "GMTalks_Youtube"]
[Black "Sychev_Klementy"]
[Result "0-1"]
[WhiteElo "2612"]
[BlackElo "2864"]
[TimeControl "180+1"]
[EndTime "11:37:35 PDT"]
[Termination "Sychev_Klementy won by resignation"]

1. d4 {[%clk 0:03:00.9]} 1... Nf6 {[%clk 0:02:56.5]} 2. Bf4 {[%clk 0:03:00.7]}
2... d5 {[%clk 0:02:47.5]} 3. e3 {[%clk 0:03:00.1]} 3... g6 {[%clk 0:02:29.7]}
4. Nc3 {[%clk 0:02:55.1]} 4... Bg7 {[%clk 0:02:28.6]} 5. h4 {[%clk 0:02:55.6]}
5... c6 {[%clk 0:02:27.3]} 6. h5 {[%clk 0:02:54.3]} 6... Nxh5 {[%clk 0:02:26.8]}
7. Rxh5 {[%clk 0:02:54.3]} 7... gxh5 {[%clk 0:02:27.2]} 8. Qxh5 {[%clk
0:02:54.6]} 8... Nd7 {[%clk 0:02:24.8]} 9. Nf3 {[%clk 0:02:49.3]} 9... Nf6
{[%clk 0:02:23.3]} 10. Qh2 {[%clk 0:02:46.7]} 10... Bf5 {[%clk 0:02:18.8]} 11.
O-O-O {[%clk 0:02:44.9]} 11... Bg6 {[%clk 0:02:17.1]} 12. Be2 {[%clk 0:02:11.1]}
12... Ne4 {[%clk 0:02:13.3]} 13. Nxe4 {[%clk 0:02:07.6]} 13... Bxe4 {[%clk
0:02:09.2]} 14. Ne5 {[%clk 0:01:58.4]} 14... Bg6 {[%clk 0:02:07.2]} 15. Bg4
{[%clk 0:01:52.6]} 15... e6 {[%clk 0:02:01.2]} 16. Kb1 {[%clk 0:01:36.6]} 16...
Qe7 {[%clk 0:01:58.3]} 17. Be2 {[%clk 0:01:28.9]} 17... f6 {[%clk 0:01:51.3]}
18. Nd3 {[%clk 0:01:21.8]} 18... Rd8 {[%clk 0:01:49.7]} 19. Bg3 {[%clk
0:01:15.9]} 19... b6 {[%clk 0:01:40.9]} 20. Bh5 {[%clk 0:01:09.8]} 20... Qf7
{[%clk 0:01:32.6]} 21. Nf4 {[%clk 0:01:06.1]} 21... e5 {[%clk 0:01:31.1]} 22.
dxe5 {[%clk 0:00:57.1]} 22... fxe5 {[%clk 0:01:31.2]} 23. Bxg6 {[%clk
0:00:55.9]} 23... hxg6 {[%clk 0:01:30.4]} 24. Nh3 {[%clk 0:00:55.8]} 24... Rh5
{[%clk 0:01:25.4]} 25. f3 {[%clk 0:00:48.4]} 25... Kd7 {[%clk 0:01:16.4]} 26.
Qg1 {[%clk 0:00:45.3]} 26... Kc8 {[%clk 0:01:16.1]} 27. Nf2 {[%clk 0:00:39.7]}
27... Kb7 {[%clk 0:01:14.7]} 28. Qf1 {[%clk 0:00:30.2]} 28... Bf6 {[%clk
0:01:02.8]} 29. Ng4 {[%clk 0:00:26.4]} 29... Bg7 {[%clk 0:01:01.2]} 30. a4
{[%clk 0:00:23.3]} 30... Qe6 {[%clk 0:00:54.1]} 31. Nf2 {[%clk 0:00:19.6]} 31...
Rd7 {[%clk 0:00:49.6]} 32. a5 {[%clk 0:00:19]} 32... Rh8 {[%clk 0:00:47]} 33.
Nd3 {[%clk 0:00:19.4]} 33... c5 {[%clk 0:00:43.1]} 34. e4 {[%clk 0:00:15.8]}
34... d4 {[%clk 0:00:40.1]} 35. a6+ {[%clk 0:00:13.6]} 35... Ka8 {[%clk
0:00:39.1]} 36. b3 {[%clk 0:00:13.7]} 36... Rc8 {[%clk 0:00:38]} 37. Nb2 {[%clk
0:00:14]} 37... Bf6 {[%clk 0:00:33.4]} 38. Qb5 {[%clk 0:00:14.4]} 38... Qc6
{[%clk 0:00:31.7]} 39. Qxc6+ {[%clk 0:00:14.4]} 39... Rxc6 {[%clk 0:00:32.6]}
40. Nd3 {[%clk 0:00:13]} 40... Re7 {[%clk 0:00:29.4]} 41. Rh1 {[%clk 0:00:13.5]}
41... b5 {[%clk 0:00:24.5]} 42. Rh6 {[%clk 0:00:13.3]} 42... Bg7 {[%clk
0:00:17.2]} 43. Rh7 {[%clk 0:00:12.1]} 43... c4 {[%clk 0:00:15]} 44. Nxe5 {[%clk
0:00:11.5]} 44... Bxe5 {[%clk 0:00:14.2]} 45. Rxe7 {[%clk 0:00:08.8]} 45... Bxg3
{[%clk 0:00:14.5]} 46. Re8+ {[%clk 0:00:08.8]} 46... Bb8 {[%clk 0:00:14.7]} 47.
e5 {[%clk 0:00:09.7]} 47... Rxa6 {[%clk 0:00:14.4]} 48. e6 {[%clk 0:00:10.3]}
48... Rd6 {[%clk 0:00:14.4]} 49. bxc4 {[%clk 0:00:09.7]} 49... bxc4 {[%clk
0:00:15.3]} 50. Kc1 {[%clk 0:00:10.3]} 50... a5 {[%clk 0:00:14.8]} 51. Kd2
{[%clk 0:00:10.9]} 51... a4 {[%clk 0:00:15.2]} 52. e7 {[%clk 0:00:11.8]} 52...
Re6 {[%clk 0:00:15.2]} 0-1

[Event "*** Titled Tuesday Blitz"]
[Site "Chess.com"]
[Date "2020.10.20"]
[Round "8"]
[White "Lion-Al-Messi"]
[Black "BanjoKazooieN64"]
[Result "1-0"]
[WhiteElo "2567"]
[BlackElo "2389"]
[TimeControl "180+1"]
[EndTime "11:37:35 PDT"]
[Termination "Lion-Al-Messi won on time"]

1. d4 {[%clk 0:03:00.9]} 1... Nf6 {[%clk 0:02:57.6]} 2. Nf3 {[%clk 0:03:01.8]}
2... g6 {[%clk 0:02:57.3]} 3. Nc3 {[%clk 0:03:02.1]} 3... Bg7 {[%clk 0:02:53.6]}
4. e4 {[%clk 0:03:01.8]} 4... O-O {[%clk 0:02:53.1]} 5. e5 {[%clk 0:03:02.1]}
5... Ne8 {[%clk 0:02:52.5]} 6. Be2 {[%clk 0:03:02]} 6... d6 {[%clk 0:02:52.7]}
7. O-O {[%clk 0:03:00.2]} 7... c5 {[%clk 0:02:51.8]} 8. exd6 {[%clk 0:02:59.3]}
8... cxd4 {[%clk 0:02:46.7]} 9. dxe7 {[%clk 0:02:58.8]} 9... Qxe7 {[%clk
0:02:46.8]} 10. Nxd4 {[%clk 0:02:58.5]} 10... Nc6 {[%clk 0:02:47]} 11. Nxc6
{[%clk 0:02:58.4]} 11... bxc6 {[%clk 0:02:47.3]} 12. Be3 {[%clk 0:02:58.1]}
12... Rb8 {[%clk 0:02:44.2]} 13. Rb1 {[%clk 0:02:52.5]} 13... Be6 {[%clk
0:02:43]} 14. Bf3 {[%clk 0:02:51.3]} 14... Nf6 {[%clk 0:02:33.8]} 15. Re1 {[%clk
0:02:46.4]} 15... Rfd8 {[%clk 0:02:30.5]} 16. Qe2 {[%clk 0:02:46.7]} 16... Qb4
{[%clk 0:02:21.4]} 17. a3 {[%clk 0:02:45]} 17... Qa5 {[%clk 0:02:20.7]} 18. h3
{[%clk 0:02:24.4]} 18... Nd7 {[%clk 0:02:14.3]} 19. Bd2 {[%clk 0:02:24.3]} 19...
Ne5 {[%clk 0:02:11.2]} 20. Ne4 {[%clk 0:02:18.6]} 20... Nxf3+ {[%clk 0:02:10.6]}
21. gxf3 {[%clk 0:02:12.9]} 21... Qh5 {[%clk 0:02:10.6]} 22. Bc3 {[%clk
0:02:10]} 22... Bxh3 {[%clk 0:01:33.6]} 23. Bxg7 {[%clk 0:02:07.9]} 23... Kxg7
{[%clk 0:01:33.2]} 24. Qe3 {[%clk 0:02:07.8]} 24... Rd5 {[%clk 0:01:29.4]} 25.
Qc3+ {[%clk 0:02:06.9]} 25... Qe5 {[%clk 0:01:15.7]} 26. Qxe5+ {[%clk
0:01:46.1]} 26... Rxe5 {[%clk 0:01:15.7]} 27. b4 {[%clk 0:01:43.3]} 27... Bf5
{[%clk 0:01:14.9]} 28. Rbd1 {[%clk 0:01:39.4]} 28... Rbe8 {[%clk 0:01:14.8]} 29.
Rd4 {[%clk 0:01:38.6]} 29... Be6 {[%clk 0:01:08.2]} 30. Re3 {[%clk 0:01:35.7]}
30... Bd5 {[%clk 0:01:07.3]} 31. Rc3 {[%clk 0:01:30]} 31... f5 {[%clk
0:01:02.9]} 32. Nd2 {[%clk 0:01:22.2]} 32... Re1+ {[%clk 0:01:02.2]} 33. Kg2
{[%clk 0:01:22.1]} 33... h5 {[%clk 0:00:44.4]} 34. Nc4 {[%clk 0:00:59.2]} 34...
h4 {[%clk 0:00:38.1]} 35. Ne3 {[%clk 0:00:56.8]} 35... h3+ {[%clk 0:00:34.6]}
36. Kxh3 {[%clk 0:00:56.2]} 36... Rh8+ {[%clk 0:00:12.6]} 37. Kg2 {[%clk
0:00:55.9]} 37... Rhh1 {[%clk 0:00:12.5]} 38. Kg3 {[%clk 0:00:51.6]} 38... Kf6
{[%clk 0:00:04]} 39. Nxd5+ {[%clk 0:00:50.4]} 39... cxd5 {[%clk 0:00:04.4]} 40.
Rc6+ {[%clk 0:00:49.2]} 40... Kg5 {[%clk 0:00:04.8]} 41. f4+ {[%clk 0:00:49.3]}
41... Kh5 {[%clk 0:00:05.1]} 42. Rc7 {[%clk 0:00:23.5]} 42... Kh6 {[%clk
0:00:04.3]} 43. Rxd5 {[%clk 0:00:20.9]} 43... Reg1+ {[%clk 0:00:02.7]} 44. Kf3
{[%clk 0:00:21.1]} 44... Rh3+ {[%clk 0:00:02.9]} 45. Ke2 {[%clk 0:00:21.2]}
45... Rh4 {[%clk 0:00:01.7]} 46. Rd4 {[%clk 0:00:17.5]} 46... Rgg4 {[%clk
0:00:02]} 47. Ke3 {[%clk 0:00:14.4]} 47... Rg2 {[%clk 0:00:02.2]} 48. Rdd7
{[%clk 0:00:09.1]} 48... Rh3+ {[%clk 0:00:02.4]} 49. f3 {[%clk 0:00:08.9]} 1-0

[Event "*** Titled Tuesday Blitz"]
[Site "Chess.com"]
[Date "2020.10.20"]
[Round "8"]
[White "1977Ivan"]
[Black "dropstoneDP"]
[Result "1/2-1/2"]
[WhiteElo "2690"]
[BlackElo "2839"]
[TimeControl "180+1"]
[EndTime "11:37:36 PDT"]
[Termination "Game drawn by repetition"]

1. d4 {[%clk 0:03:00.9]} 1... Nf6 {[%clk 0:02:59.7]} 2. Nf3 {[%clk 0:03:01.3]}
2... g6 {[%clk 0:03:00.2]} 3. Nbd2 {[%clk 0:02:59]} 3... d5 {[%clk 0:02:59.9]}
4. c4 {[%clk 0:02:59.2]} 4... c5 {[%clk 0:02:50.6]} 5. cxd5 {[%clk 0:02:51.4]}
5... cxd4 {[%clk 0:02:50.2]} 6. Qa4+ {[%clk 0:02:50.3]} 6... Qd7 {[%clk
0:02:39]} 7. Qxd4 {[%clk 0:02:45.4]} 7... Qxd5 {[%clk 0:02:39.2]} 8. e4 {[%clk
0:02:45.4]} 8... Qxd4 {[%clk 0:02:34]} 9. Nxd4 {[%clk 0:02:46.3]} 9... Bg7
{[%clk 0:02:34.5]} 10. e5 {[%clk 0:02:20.9]} 10... Nd5 {[%clk 0:02:31.6]} 11.
Nc4 {[%clk 0:02:15.5]} 11... O-O {[%clk 0:02:29.5]} 12. Bd2 {[%clk 0:02:09.9]}
12... Bd7 {[%clk 0:02:03.2]} 13. Be2 {[%clk 0:01:52.6]} 13... Nc6 {[%clk
0:01:45.9]} 14. Nxc6 {[%clk 0:01:52.2]} 14... Bxc6 {[%clk 0:01:46]} 15. O-O
{[%clk 0:01:51.2]} 15... Bb5 {[%clk 0:01:36.7]} 16. Rfe1 {[%clk 0:01:50.7]}
16... Rfd8 {[%clk 0:01:35.2]} 17. Rac1 {[%clk 0:01:49.1]} 17... Rac8 {[%clk
0:01:32]} 18. b3 {[%clk 0:01:46.1]} 18... Nb6 {[%clk 0:01:20.3]} 19. Bg5 {[%clk
0:01:32.4]} 19... Kf8 {[%clk 0:00:41]} 20. Bg4 {[%clk 0:01:21.9]} 20... Rc6
{[%clk 0:00:27.8]} 21. Bf3 {[%clk 0:01:17.5]} 21... Rc7 {[%clk 0:00:22.9]} 22.
Nxb6 {[%clk 0:01:03.9]} 22... Rxc1 {[%clk 0:00:22.4]} 23. Rxc1 {[%clk
0:01:03.8]} 23... axb6 {[%clk 0:00:23]} 24. Rc7 {[%clk 0:01:03]} 24... f6 {[%clk
0:00:11.6]} 25. exf6 {[%clk 0:01:01.8]} 25... exf6 {[%clk 0:00:06.7]} 26. Be3
{[%clk 0:01:00.7]} 26... Bc6 {[%clk 0:00:06.9]} 27. h4 {[%clk 0:00:55.3]} 27...
Bxf3 {[%clk 0:00:03.7]} 28. gxf3 {[%clk 0:00:56.2]} 28... b5 {[%clk 0:00:04]}
29. Rxb7 {[%clk 0:00:54.7]} 29... Ra8 {[%clk 0:00:04.6]} 30. a3 {[%clk
0:00:49.7]} 30... Kg8 {[%clk 0:00:03.2]} 31. Bc5 {[%clk 0:00:46.4]} 31... Bf8
{[%clk 0:00:03.7]} 32. Bb4 {[%clk 0:00:32.1]} 32... Bxb4 {[%clk 0:00:03.1]} 33.
axb4 {[%clk 0:00:33]} 33... Ra3 {[%clk 0:00:03.2]} 34. Rxb5 {[%clk 0:00:32.8]}
34... Rxb3 {[%clk 0:00:04.1]} 35. Kg2 {[%clk 0:00:33.3]} 35... Kg7 {[%clk
0:00:04.6]} 36. Rb7+ {[%clk 0:00:33.7]} 36... Kh6 {[%clk 0:00:04.7]} 37. Kg3
{[%clk 0:00:33.9]} 37... g5 {[%clk 0:00:04]} 38. hxg5+ {[%clk 0:00:26]} 38...
Kxg5 {[%clk 0:00:04.9]} 39. Rg7+ {[%clk 0:00:11.4]} 39... Kh6 {[%clk 0:00:05.1]}
40. Rg4 {[%clk 0:00:10.7]} 40... f5 {[%clk 0:00:04.3]} 41. Rc4 {[%clk
0:00:07.2]} 41... Kg5 {[%clk 0:00:04.6]} 42. Kg2 {[%clk 0:00:06.2]} 42... h5
{[%clk 0:00:04.8]} 43. Kg3 {[%clk 0:00:06.4]} 43... Rd3 {[%clk 0:00:02.7]} 44.
b5 {[%clk 0:00:04.3]} 44... Rb3 {[%clk 0:00:03.1]} 45. Rc5 {[%clk 0:00:04.4]}
45... h4+ {[%clk 0:00:03.7]} 46. Kg2 {[%clk 0:00:04.5]} 46... Kf4 {[%clk
0:00:04.4]} 47. Rc4+ {[%clk 0:00:03.8]} 47... Kg5 {[%clk 0:00:05]} 48. Rc5
{[%clk 0:00:04]} 48... Kf4 {[%clk 0:00:05.7]} 49. Rc4+ {[%clk 0:00:04.1]} 49...
Kg5 {[%clk 0:00:06.2]} 50. Rc5 {[%clk 0:00:02.9]} 1/2-1/2

[Event "*** Titled Tuesday Blitz"]
[Site "Chess.com"]
[Date "2020.10.20"]
[Round "8"]
[White "picturesquecheck"]
[Black "dennisodessa"]
[Result "0-1"]
[WhiteElo "2143"]
[BlackElo "2441"]
[TimeControl "180+1"]
[EndTime "11:37:37 PDT"]
[Termination "dennisodessa won by resignation"]

1. e4 {[%clk 0:03:00.9]} 1... e6 {[%clk 0:02:44.9]} 2. d4 {[%clk 0:03:00.2]}
2... d5 {[%clk 0:02:45.1]} 3. Nd2 {[%clk 0:03:01.1]} 3... Nf6 {[%clk 0:02:45.1]}
4. e5 {[%clk 0:03:00.5]} 4... Nfd7 {[%clk 0:02:46]} 5. Bd3 {[%clk 0:03:00.8]}
5... c5 {[%clk 0:02:46.9]} 6. c3 {[%clk 0:03:01.1]} 6... Nc6 {[%clk 0:02:47.8]}
7. Ne2 {[%clk 0:03:00.2]} 7... cxd4 {[%clk 0:02:48.3]} 8. cxd4 {[%clk
0:02:59.1]} 8... f6 {[%clk 0:02:49.2]} 9. exf6 {[%clk 0:02:58.6]} 9... Qxf6
{[%clk 0:02:50.1]} 10. Nf3 {[%clk 0:02:57.9]} 10... h6 {[%clk 0:02:51]} 11. O-O
{[%clk 0:02:56.9]} 11... Bd6 {[%clk 0:02:51.5]} 12. Be3 {[%clk 0:02:56]} 12...
O-O {[%clk 0:02:51]} 13. a3 {[%clk 0:02:56.3]} 13... Rd8 {[%clk 0:02:51.2]} 14.
Rc1 {[%clk 0:02:56.3]} 14... Nf8 {[%clk 0:02:50.8]} 15. Bb1 {[%clk 0:02:56.4]}
15... Bd7 {[%clk 0:02:50.9]} 16. Qd3 {[%clk 0:02:56]} 16... Be8 {[%clk
0:02:50.1]} 17. Qd2 {[%clk 0:02:45.4]} 17... Bg6 {[%clk 0:02:47.8]} 18. Ng3
{[%clk 0:02:43.1]} 18... Bxb1 {[%clk 0:02:41]} 19. Rxb1 {[%clk 0:02:44]} 19...
Ng6 {[%clk 0:02:39.5]} 20. Rfe1 {[%clk 0:02:32.5]} 20... Rf8 {[%clk 0:02:33.2]}
21. b4 {[%clk 0:02:25.9]} 21... a6 {[%clk 0:02:32.4]} 22. Kh1 {[%clk 0:02:17.4]}
22... Rae8 {[%clk 0:02:24.5]} 23. Ne2 {[%clk 0:02:06.2]} 23... Kh7 {[%clk
0:02:17.6]} 24. Nc3 {[%clk 0:02:03]} 24... Nf4 {[%clk 0:02:14]} 25. Bxf4 {[%clk
0:02:00.4]} 25... Bxf4 {[%clk 0:02:14.9]} 26. Qd3+ {[%clk 0:01:59.5]} 26... Kg8
{[%clk 0:02:07.1]} 27. Na4 {[%clk 0:01:58.1]} 27... g5 {[%clk 0:01:47]} 28. Nc5
{[%clk 0:01:49]} 28... g4 {[%clk 0:01:44.6]} 29. Ng1 {[%clk 0:01:48.9]} 29...
Qxd4 {[%clk 0:01:39.8]} 30. Qxd4 {[%clk 0:01:40.8]} 30... Nxd4 {[%clk
0:01:40.7]} 31. Nxb7 {[%clk 0:01:39.6]} 31... Bd2 {[%clk 0:01:36.7]} 32. Red1
{[%clk 0:01:36.9]} 32... Rxf2 {[%clk 0:01:36.2]} 33. Nc5 {[%clk 0:01:34]} 33...
Be3 {[%clk 0:01:23.2]} 34. Nxa6 {[%clk 0:01:30.5]} 34... h5 {[%clk 0:01:18.4]}
35. b5 {[%clk 0:01:28.7]} 35... h4 {[%clk 0:01:18.6]} 36. b6 {[%clk 0:01:25.7]}
36... Nc6 {[%clk 0:00:43.2]} 37. b7 {[%clk 0:01:23.4]} 37... Nb8 {[%clk
0:00:43.8]} 38. Nxb8 {[%clk 0:01:02.4]} 38... Rxb8 {[%clk 0:00:44.7]} 39. Re1
{[%clk 0:00:59.1]} 39... d4 {[%clk 0:00:44.4]} 40. h3 {[%clk 0:00:49.9]} 40...
gxh3 {[%clk 0:00:38.3]} 41. Nxh3 {[%clk 0:00:49.7]} 41... Ra2 {[%clk 0:00:38.6]}
42. Rb3 {[%clk 0:00:49.4]} 42... e5 {[%clk 0:00:36.2]} 43. Ng1 {[%clk 0:00:37]}
43... e4 {[%clk 0:00:35.6]} 44. Ne2 {[%clk 0:00:23.8]} 44... d3 {[%clk
0:00:27.6]} 45. Nc3 {[%clk 0:00:23.4]} 45... Bd2 {[%clk 0:00:15.9]} 46. Rxe4
{[%clk 0:00:20.6]} 46... Ra1+ {[%clk 0:00:08.8]} 47. Rb1 {[%clk 0:00:18.6]}
47... Bxc3 {[%clk 0:00:08.6]} 48. Rxa1 {[%clk 0:00:18.5]} 48... Bxa1 {[%clk
0:00:09.5]} 49. Rb4 {[%clk 0:00:17.8]} 49... d2 {[%clk 0:00:08.8]} 50. Rb1
{[%clk 0:00:17.4]} 50... Bb2 {[%clk 0:00:09.2]} 51. Rd1 {[%clk 0:00:16.6]} 51...
Bc1 {[%clk 0:00:09.6]} 0-1